fUST/lending_fUST_20240406
["ID","MTS","AMOUNT","RATE_DAILY","PERIOD"]
[321691519,1712388958799,189.049142,0.00026283,2]
[321691520,1712389090635,150.0,0.00026504,2]
[321691522,1712389165655,204.960945,0.00030137,120]
[321691523,1712389266731,151.12362959,0.00027004,2]
[321691524,1712389486414,189.049142,0.00026238,2]
[321691527,1712389729903,152.52371847,0.00026956,2]
[321691528,1712389735178,163.70809443,0.00026955,2]
[321691529,1712389752066,234.24261,0.00030137,120]
[321691530,1712389820290,200.15848131,0.00026964,2]
[321691591,1712389838258,-1864.3753617,0.00027047,2]
[321691602,1712389838346,-187.95207728,0.00027048,2]
[321691604,1712389838380,-271.64376324,0.00027048,2]
[321691606,1712389838389,-483.82403833,0.00027048,2]
[321692080,1712389843538,-290.63316633,0.00027047,2]
[321692106,1712389912948,2336.01943768,0.00026261,2]
[321692107,1712389912992,3000.43612732,0.00026261,2]
[321692108,1712389913023,3372.1352458,0.00026261,2]
[321692109,1712389916838,151.12362957,0.00026943,2]
[321692110,1712389994316,674.46803506,0.00024948,2]
[321692111,1712390008319,181.14578,0.00027,2]
[321692112,1712390077197,3175.38523158,0.00021,2]
[321692113,1712390078002,163.91349944,0.0002104,15]
[321692114,1712390127353,166.574209,0.00025953,2]
[321692115,1712390257531,234.24261,0.00030137,120]
[321692116,1712390277680,435.35442115,0.0002701,2]
[321692117,1712390281638,688.56799994,0.0002701,2]
[321692118,1712390285140,1484.4319684,0.0002701,2]
[321692119,1712390289012,1572.33263983,0.0002701,2]
[321692120,1712390290736,163.70809443,0.0002701,2]
[321692121,1712390291380,537.45185021,0.0002701,2]
[321692122,1712390295444,449.64535671,0.00024947,2]
[321692123,1712390307937,935.37988423,0.0002701,2]
[321692124,1712390309259,562.30559427,0.0002701,2]
[321692125,1712390366178,688.56799994,0.0002701,2]
[321692126,1712390383855,157.14265956,0.0002701,2]
[321692127,1712390385756,562.30559427,0.0002701,2]
[321692128,1712390387400,215.58014229,0.0002701,2]
[321692129,1712390541979,152.35886981,0.00026927,2]
[321692130,1712390582526,2355.032139,0.00026286,2]
[321692131,1712390596972,299.76357114,0.00024947,2]
[321692133,1712390711109,174.016991,0.00026338,2]
[321692134,1712390877363,157.50344,0.00026127,2]
[321692135,1712390898152,199.84238076,0.0002491,2]
[321692194,1712391038481,-157.14265956,0.00027024,2]
[321692196,1712391038491,-2577.89649192,0.00027025,2]
[321692198,1712391038500,-1629.16220035,0.00027027,2]
[321692200,1712391038513,-3932.44703468,0.00027027,2]
[321692202,1712391038523,-21.73418104,0.0002703,2]
[321692205,1712391038534,-166.21789624,0.0002703,2]
[321692207,1712391038544,-152.35886981,0.00027096,2]
[321692209,1712391038554,-193.28696726,0.0002712,2]
[321692211,1712391038563,-749.19478481,0.0002712,3]
[321692213,1712391038572,-300.0,0.00027198,2]
[321692215,1712391038582,-300.0,0.00027199,2]
[321692217,1712391038591,-7644.27986641,0.000272,2]
[321692333,1712391043626,-974.11147697,0.000272,2]
[321692342,1712391043702,-0.01587647,0.000272,2]
[321692379,1712391055273,24900.0,0.00026387,2]
[321692380,1712391140732,-150.5,0.00030756,35]
[321692381,1712391140756,-150.5,0.00030766,35]
[321692382,1712391140778,-200.0,0.00030775,35]
[321692383,1712391140800,-150.5,0.00030776,35]
[321692384,1712391140825,-201.21,0.00030825,35]
[321692385,1712391140848,-150.5,0.00030835,35]
[321692386,1712391140871,-150.5,0.00030845,35]
[321692387,1712391140896,-1108.0,0.00031031,35]
[321692388,1712391140921,-1108.0,0.00031041,35]
[321692389,1712391140945,-158.75,0.00031051,35]
[321692390,1712391140968,-1108.0,0.00031051,35]
[321692391,1712391140995,-265.8,0.00031367,35]
[321692392,1712391141017,-150.5,0.00031377,35]
[321692393,1712391141046,-4687.39448882,0.00032,30]
[321692394,1712391141079,-1009.15774349,0.00033,30]
[321692395,1712391170575,-3246.04,0.00027493,7]
[321692396,1712391170606,-3246.04,0.00027767,7]
[321692397,1712391170634,-3246.04,0.00028041,7]
[321692398,1712391170661,-3246.04,0.00028315,7]
[321692399,1712391170689,-3246.04,0.00028589,7]
[321692400,1712391170713,-234.83989558,0.00028645,7]
[321692401,1712391170738,-3246.04,0.00028863,7]
[321692402,1712391170765,-3246.04,0.00029137,7]
[321692403,1712391170791,-3246.04,0.00029411,7]
[321692404,1712391170818,-3246.04,0.00029685,7]
[321692405,1712391170844,-3246.04,0.00029959,7]
[321692406,1712391170867,-1664.54014531,0.0003,7]
[321692407,1712391170892,-3246.04,0.00030233,7]
[321692408,1712391170917,-3246.04,0.00030507,7]
[321692409,1712391170944,-3246.04,0.00030781,7]
[321692410,1712391170968,-3246.04,0.00031055,7]
[321692411,1712391170992,-3246.04,0.00031329,7]
[321692412,1712391171018,-3246.04,0.00031603,7]
[321692413,1712391171043,-3246.04,0.00031877,7]
[321692414,1712391171071,-3246.04,0.00032151,7]
[321692415,1712391171095,-3246.04,0.00032425,7]
[321692416,1712391171120,-151.0,0.00032568,7]
[321692417,1712391171145,-3246.04,0.00032699,7]
[321692418,1712391171169,-3246.04,0.00032973,7]
[321692419,1712391171195,-3246.04,0.00033247,7]
[321692420,1712391171219,-3246.04,0.00033521,7]
[321692421,1712391171243,-3246.23156346,0.00033795,7]
[321692422,1712391171267,-1000.0,0.000338,7]
[321692423,1712391171291,-749.19478477,0.00034553,7]
[321692424,1712391171313,-589.45197431,0.00035616,7]
[321692425,1712391290656,-776.0,0.00030751,35]
[321692426,1712391290679,-230.1,0.00030761,35]
[321692427,1712391290705,-776.0,0.00030761,35]
[321692428,1712391290728,-150.5,0.00030771,35]
[321692429,1712391290751,-776.0,0.00030771,35]
[321692430,1712391290806,-319.40440648,0.00039,30]
[321692431,1712391323598,155.0,0.0002701,2]
[321692432,1712391325780,1572.33263983,0.0002701,2]
[321692433,1712391336912,3456.88796952,0.0002701,2]
[321692434,1712391336980,271.64376324,0.0002701,2]
[321692435,1712391337016,688.56799994,0.0002701,2]
[321692436,1712391339488,1929.1859808,0.0002701,2]
[321692437,1712391340851,524.27891833,0.0002701,2]
[321692438,1712391345662,282.48776653,0.0002701,2]
[321692439,1712391348699,1131.10155601,0.0002701,2]
[321692440,1712391355319,232.95017337,0.0002701,2]
[321692441,1712391356284,1864.3753617,0.0002701,2]
[321692442,1712391356593,472.86433068,0.0002701,2]
[321692443,1712391356916,562.30559427,0.0002701,2]
[321692444,1712391358416,1615.77144121,0.0002701,2]
[321692445,1712391361344,2577.89649192,0.0002701,2]
[321692446,1712391368083,242.52421055,0.0002701,2]
[321692447,1712391378983,5249.2068108,0.00026199,2]
[321692449,1712391587610,152.35886981,0.00026988,2]
[321692451,1712391603784,7544.7450616,0.00026147,2]
[321692452,1712391610548,857.14468735,0.00026865,2]
[321692453,1712391803542,155.74988483,0.00027,3]
[321692454,1712391994360,-150.5,0.00030654,35]
[321692455,1712391994385,-150.5,0.00030664,35]
[321692456,1712391994408,-150.5,0.00030674,35]
[321692457,1712391994434,-543.0,0.00030751,35]
[321692458,1712391994458,-543.0,0.00030761,35]
[321692459,1712391994482,-543.0,0.00030771,35]
[321692460,1712391994532,-452.95050111,0.00039,30]
[321692539,1712392238673,-155.0,0.00027047,2]
[321692540,1712392238683,-242.52421055,0.00027047,2]
[321692541,1712392238694,-617.67512246,0.00027047,2]
[321692583,1712392247393,-232.95017337,0.00027046,2]
[321692584,1712392247403,-1929.1859808,0.00027046,2]
[321692585,1712392247414,-1615.77144121,0.00027046,2]
[321692586,1712392247424,-2839.21284706,0.00027047,2]
[321692587,1712392247434,-472.86433068,0.00027048,2]
[321692588,1712392247444,-407.36237931,0.00027048,2]
[321692589,1712392247456,-300.0,0.0002705,2]
[321692590,1712392247466,-300.0,0.0002705,2]
[321692591,1712392247477,-193.28696726,0.00027098,2]
[321692592,1712392247486,-1447.43304746,0.00027099,2]
[321692593,1712392247597,-1120.48571752,0.00027099,2]
[321692594,1712392247607,-561.89608863,0.00027102,3]
[321692595,1712392247617,-1321.99597322,0.00027198,2]
[321692596,1712392247626,-296.92070656,0.00027198,2]
[321692597,1712392247635,-283.50839674,0.00027198,2]
[321692598,1712392247644,-888.95253308,0.00027198,2]
[321692599,1712392247653,-155.91141049,0.00027198,2]
[321692600,1712392247662,-156.30492185,0.00027198,2]
[321692601,1712392247671,-293.46904538,0.00027198,2]
[321692602,1712392247680,-273.16594134,0.00027198,2]
[321692603,1712392247689,-588.31844796,0.00027198,2]
[321692604,1712392247698,-550.98498562,0.00027198,2]
[321692605,1712392247707,-637.81773383,0.00027198,2]
[321692606,1712392247716,-436.89172449,0.00027198,2]
[321692607,1712392247726,-1274.42178026,0.00027198,2]
[321692608,1712392247736,-392.05336155,0.00027198,2]
[321692609,1712392247746,-2361.5287215,0.00027198,2]
[321692610,1712392247756,-349.3921746,0.00027198,2]
[321692611,1712392247765,-1076.58094974,0.00027199,2]
[321692612,1712392247775,-26573.0242762,0.000272,2]
[321692613,1712392247785,-152.35886981,0.00027202,2]
[321692614,1712392247794,-5501.54805828,0.0002722,2]
[321692615,1712392247805,-1981.03019826,0.00027222,2]
[321692616,1712392247813,-446.11955244,0.00027226,2]
[321692617,1712392247823,-1500.0,0.00027297,2]
[321692618,1712392247832,-500.0,0.00027396,2]
[321692619,1712392247842,-200.0,0.00027396,2]
[321692620,1712392247851,-500.0,0.00027396,2]
[321692621,1712392247860,-500.0,0.00027396,2]
[321692622,1712392247869,-500.0,0.00027396,2]
[321692623,1712392247878,-500.0,0.00027396,2]
[321692624,1712392247888,-500.0,0.00027396,2]
[321692625,1712392247898,-500.0,0.00027396,2]
[321692626,1712392247908,-500.0,0.00027396,2]
[321692627,1712392247918,-500.0,0.00027396,2]
[321692628,1712392247927,-256.10842688,0.00027397,2]
[321692629,1712392247938,-500.0,0.00027397,2]
[321692630,1712392247948,-1000.0,0.00027397,2]
[321692631,1712392247957,-500.0,0.00027397,2]
[321692632,1712392247967,-500.0,0.00027397,2]
[321692633,1712392247976,-500.0,0.00027397,2]
[321692634,1712392247986,-500.0,0.00027397,2]
[321692635,1712392247995,-500.0,0.00027397,2]
[321692636,1712392248004,-500.0,0.00027397,2]
[321692637,1712392248014,-500.0,0.00027397,2]
[321692638,1712392248024,-500.0,0.00027397,2]
[321692639,1712392248034,-764.37,0.00027397,2]
[321692640,1712392248044,-155.07598723,0.00027397,2]
[321692641,1712392248053,-500.0,0.00027397,2]
[321692642,1712392248063,-500.0,0.00027397,2]
[321692643,1712392248073,-500.0,0.00027397,2]
[321692644,1712392248083,-509.31943115,0.00027397,2]
[321692645,1712392248094,-500.0,0.00027397,2]
[321692646,1712392248103,-2539.59,0.00027397,2]
[321692647,1712392248113,-500.0,0.00027397,2]
[321692648,1712392248122,-500.0,0.00027397,2]
[321692649,1712392248134,-500.0,0.00027397,2]
[321692650,1712392248146,-500.0,0.00027397,2]
[321692651,1712392248157,-500.0,0.00027397,2]
[321692652,1712392248168,-500.0,0.00027397,2]
[321692653,1712392248181,-500.0,0.00027397,2]
[321692654,1712392248191,-500.0,0.00027397,2]
[321692655,1712392248201,-500.0,0.00027397,2]
[321692656,1712392248211,-500.0,0.00027397,2]
[321692657,1712392248221,-500.0,0.00027397,2]
[321692658,1712392248232,-502.92772589,0.00027397,2]
[321692659,1712392248243,-922.02,0.00027397,2]
[321692660,1712392248254,-500.00273364,0.00027397,2]
[321692661,1712392248264,-500.0,0.00027397,2]
[321692662,1712392248275,-500.0,0.00027397,2]
[321692663,1712392248287,-500.0,0.00027397,2]
[321692664,1712392248298,-500.0,0.00027397,2]
[321692665,1712392248310,-151.0,0.00027397,2]
[321692666,1712392248321,-532.36,0.00027397,2]
[321692667,1712392248331,-1358.61,0.00027397,2]
[321692668,1712392248342,-1617.31270373,0.00027397,2]
[321692669,1712392249477,166.574209,0.00026006,2]
[321692670,1712392314249,158.32796,0.00026396,2]
[321692728,1712392404622,441.01863264,0.00025297,2]
[321692740,1712392587677,24324.2774491,0.00026157,2]
[321692741,1712392663348,945.0,0.000265,2]
[321692742,1712392706230,294.01242176,0.00025297,2]
[321692743,1712392748362,179.110629,0.00025884,2]
[321692745,1712392776933,152.35886981,0.00026981,2]
[321692746,1712392828150,158.32796,0.00026145,2]
[321692748,1712393007565,196.00828117,0.00025297,2]
[321692750,1712393308751,150.0,0.00024057,2]
[321692775,1712393431890,-188.4812004,0.00027041,2]
[321692776,1712393431901,-542.94049469,0.00027042,2]
[321692777,1712393431912,-155.0,0.00027043,2]
[321692778,1712393431922,-407.36237931,0.00027044,2]
[321692779,1712393431933,-155.0,0.00027044,2]
[321692780,1712393431943,-491.65907756,0.00027097,3]
[321692781,1712393431953,-2555.14769288,0.00027098,2]
[321692782,1712393431963,-5679.13065756,0.00027195,2]
[321692783,1712393431973,-155.01705188,0.00027196,2]
[321692784,1712393431984,-300.0,0.00027196,2]
[321692785,1712393431993,-300.0,0.00027196,2]
[321692786,1712393432004,-1004.56025567,0.00027197,2]
[321692787,1712393432014,-1675.1,0.00027197,2]
[321692788,1712393432023,-500.0,0.00027197,2]
[321692789,1712393432033,-5615.63,0.00027197,2]
[321692790,1712393432042,-500.0,0.00027197,2]
[321692791,1712393432054,-869.75,0.00027197,2]
[321692792,1712393432065,-500.0,0.00027197,2]
[321692793,1712393432075,-500.0,0.00027197,2]
[321692794,1712393432085,-500.0,0.00027197,2]
[321692795,1712393432095,-500.0,0.00027197,2]
[321692796,1712393432105,-3709.68,0.00027197,2]
[321692797,1712393432120,-500.0,0.00027197,2]
[321692798,1712393432132,-1000.0,0.00027197,2]
[321692799,1712393432142,-25217.95,0.00027197,2]
[321692800,1712393432158,-1441.08,0.00027197,2]
[321692801,1712393432168,-500.0,0.00027197,2]
[321692802,1712393432180,-5603.33,0.00027197,2]
[321692803,1712393432190,-6668.75,0.00027197,2]
[321692804,1712393432200,-500.0,0.00027197,2]
[321692805,1712393432211,-1830.67,0.00027197,2]
[321692806,1712393432221,-500.0,0.00027197,2]
[321692807,1712393432231,-500.0,0.00027197,2]
[321692808,1712393432241,-526.59037445,0.00027197,2]
[321692809,1712393432252,-500.0,0.00027197,2]
[321692810,1712393432262,-966.77,0.00027197,2]
[321692811,1712393432272,-500.0,0.00027197,2]
[321692812,1712393432283,-4182.7,0.00027197,2]
[321692813,1712393432293,-500.0,0.00027197,2]
[321692814,1712393432304,-1847.02,0.00027197,2]
[321692815,1712393432315,-500.0,0.00027197,2]
[321692816,1712393432325,-1406.35679973,0.00027197,2]
[321692825,1712393437955,-500.0,0.00027196,2]
[321692826,1712393437964,-500.0,0.00027196,2]
[321692827,1712393437977,-187.40446215,0.00027196,2]
[321692961,1712393610005,150.0,0.00025097,2]
[321692962,1712393686098,12082.272376,0.00026198,2]
[321692966,1712393985839,212.096366,0.00026198,2]
[321692967,1712394009322,631.85723436,0.00026798,2]
[321693024,1712394624744,111869.3838084,0.00027,2]
[321693055,1712394638120,-542.94049469,0.00027042,2]
[321693056,1712394638131,-1572.33263983,0.00027043,2]
[321693057,1712394638141,-283.09638224,0.00027044,2]
[321693058,1712394638150,-188.4812004,0.00027045,2]
[321693059,1712394638158,-155.0,0.00027045,2]
[321693060,1712394638168,-1437.55118742,0.00027084,2]
[321693117,1712394640222,-395.00773508,0.00027084,2]
[321693118,1712394640344,-430.20169283,0.00027096,3]
[321693119,1712394640358,-300.0,0.00027193,2]
[321693120,1712394640368,-300.0,0.00027193,2]
[321693121,1712394640378,-5555.41132595,0.00027194,2]
[321693122,1712394640387,-496.14659827,0.00027194,2]
[321693123,1712394640399,-500.0,0.00027194,2]
[321693124,1712394640409,-473.02786346,0.00027194,2]
[321693125,1712394640419,-500.0,0.00027194,2]
[321693126,1712394640429,-500.0,0.00027194,2]
[321693127,1712394640439,-607.05769406,0.00027194,2]
[321693128,1712394640448,-155.91282292,0.00027195,2]
[321693129,1712394640458,-987.96573052,0.00027195,2]
[321693130,1712394640468,-1612.56272714,0.00027195,2]
[321693131,1712394640477,-1605.3,0.00027195,2]
[321693132,1712394640487,-500.0,0.00027195,2]
[321693133,1712394640496,-500.0,0.00027195,2]
[321693134,1712394640506,-500.0,0.00027195,2]
[321693135,1712394640515,-5381.65,0.00027195,2]
[321693136,1712394640524,-468.15644754,0.00027195,2]
[321693137,1712394640534,-450.20168424,0.00027195,2]
[321693138,1712394640550,-383.30831576,0.00027195,2]
[321693139,1712394640560,-500.0,0.00027195,2]
[321693140,1712394640569,-500.0,0.00027195,2]
[321693141,1712394640578,-972.99696942,0.00027195,2]
[321693142,1712394640590,-2582.11303058,0.00027195,2]
[321693143,1712394640600,-1381.03,0.00027195,2]
[321693144,1712394640609,-1725.90503034,0.00027195,2]
[321693318,1712394646133,-379.58877878,0.00027195,2]
[321693325,1712394646189,-1910.2758699,0.00027195,2]
[321693516,1712394651441,283.09638224,0.0002665,2]
[321693517,1712394667443,193.27988932,0.00026649,2]
[321693518,1712394672703,6330.5205729,0.00026212,2]
[321693519,1712394682829,250.0,0.00026196,2]
[321693520,1712394815048,150.0,0.00025095,2]
[321693521,1712394833709,172.182299,0.00025897,2]
[321693522,1712394895703,239.58143426,0.00020394,2]
[321693524,1712395016994,158.327961,0.00026146,2]
[321693528,1712395419282,169.94515057,0.00025095,2]
[321693529,1712395507411,155.0,0.00025095,2]
[321693530,1712395532864,319.980281,0.0002617,2]
[321693531,1712395622659,10781.04600243,0.0002617,2]
[321693532,1712395637440,152.35886981,0.00026991,2]
[321693533,1712395684520,-263.21,0.0003074,35]
[321693534,1712395684542,-116.79,0.0003075,35]
[321693535,1712395684729,-33.71,0.0003075,35]
[321693536,1712395684766,-228.97,0.0003077,35]
[321693539,1712395720351,150.0,0.0002407,2]
[321693544,1712395745197,263.21,0.00030736,35]
[321693591,1712395832262,-1572.33263983,0.00027092,2]
[321693593,1712395832272,-154.98450155,0.00027092,2]
[321693595,1712395832281,-688.59291172,0.00027093,2]
[321693597,1712395832290,-198.33318905,0.00027093,2]
[321693599,1712395832300,-424.24749724,0.00027093,3]
[321693601,1712395832309,-158.32916767,0.000271,7]
[321693603,1712395832318,-300.0,0.00027191,2]
[321693605,1712395832327,-300.0,0.00027191,2]
[321693606,1712395832336,-632.11730821,0.00027192,2]
[321693607,1712395832345,-1323.49,0.00027192,2]
[321693608,1712395832355,-500.0,0.00027192,2]
[321693610,1712395832364,-926.49,0.00027192,2]
[321693612,1712395832374,-500.0,0.00027192,2]
[321693614,1712395832383,-1770.06,0.00027192,2]
[321693616,1712395832393,-897.3,0.00027192,2]
[321693618,1712395832403,-1538.42,0.00027192,2]
[321693620,1712395832414,-196.51060381,0.00027193,2]
[321693622,1712395832423,-221.9786003,0.00027193,2]
[321693624,1712395832433,-525.14943667,0.00027193,2]
[321693626,1712395832443,-500.0,0.00027193,2]
[321693628,1712395832452,-484.22442831,0.00027193,2]
[321693629,1712395832462,-510.18,0.00027193,2]
[321693630,1712395832471,-883.6,0.00027193,2]
[321693631,1712395832481,-813.75,0.00027193,2]
[321693632,1712395832492,-2615.19,0.00027193,2]
[321693633,1712395832501,-500.0,0.00027193,2]
[321693634,1712395832510,-500.0,0.00027193,2]
[321693636,1712395832519,-500.0,0.00027193,2]
[321693637,1712395832528,-500.0,0.00027193,2]
[321693639,1712395832536,-500.0,0.00027193,2]
[321693641,1712395832546,-500.0,0.00027193,2]
[321693643,1712395832555,-500.0,0.00027193,2]
[321693645,1712395832564,-500.0,0.00027193,2]
[321693647,1712395832573,-507.11716581,0.00027193,2]
[321693649,1712395832582,-464.07674871,0.00027193,2]
[321693651,1712395832592,-817.58,0.00027193,2]
[321693654,1712395832601,-21242.21,0.00027193,2]
[321693655,1712395832611,-507.45558003,0.00027193,2]
[321693658,1712395832620,-5689.12,0.00027193,2]
[321693660,1712395832629,-922.89,0.00027193,2]
[321693662,1712395832638,-500.0,0.00027193,2]
[321693664,1712395832648,-500.0,0.00027193,2]
[321693666,1712395832657,-500.0,0.00027193,2]
[321693668,1712395832666,-7156.2,0.00027193,2]
[321693670,1712395832676,-1720.81,0.00027193,2]
[321693672,1712395832685,-534.86561096,0.00027193,2]
[321693674,1712395832694,-500.0,0.00027193,2]
[321693676,1712395832703,-5157.41,0.00027193,2]
[321693678,1712395832712,-958.47,0.00027193,2]
[321693679,1712395832722,-1219.95380279,0.00027193,2]
[321693686,1712395832776,-2488.53879921,0.00027193,2]
[321693731,1712395838267,-381.697398,0.00027193,2]
[321693733,1712395838277,-500.0,0.00027193,2]
[321693735,1712395838287,-1672.93,0.00027193,2]
[321693737,1712395838297,-107.02850077,0.00027193,2]
[321693739,1712395838308,-691.75149923,0.00027193,2]
[321693742,1712395838318,-296.56548463,0.00027193,2]
[321693743,1712395838329,-500.0,0.00027193,2]
[321693744,1712395838339,-3406.98,0.00027193,2]
[321693745,1712395838349,-500.0,0.00027193,2]
[321693746,1712395838359,-500.0,0.00027193,2]
[321693747,1712395838370,-1192.48756458,0.00027193,2]
[321693856,1712395846354,-5198.40243542,0.00027193,2]
[321693857,1712395846363,-23999.88,0.00027193,2]
[321693858,1712395846372,-5369.86,0.00027193,2]
[321693859,1712395846381,-500.0,0.00027193,2]
[321693860,1712395846390,-519.97627591,0.00027193,2]
[321693861,1712395846399,-1754.39,0.00027193,2]
[321693862,1712395846408,-151.0,0.00027193,2]
[321693863,1712395846421,-291.792694,0.00027193,2]
[321693864,1712395846430,-3328.26,0.00027193,2]
[321693865,1712395846439,-500.0,0.00027193,2]
[321693867,1712395846448,-212.75697089,0.00027193,2]
[321693869,1712395846458,-500.0,0.00027193,2]
[321693870,1712395846467,-500.0,0.00027193,2]
[321693871,1712395846477,-4008.42,0.00027193,2]
[321693872,1712395846578,-500.0,0.00027193,2]
[321693873,1712395846589,-782.44,0.00027193,2]
[321693874,1712395846598,-500.0,0.00027193,2]
[321693875,1712395846607,-3073.34,0.00027193,2]
[321693876,1712395846616,-500.0,0.00027193,2]
[321693877,1712395846626,-500.0,0.00027193,2]
[321693878,1712395846634,-20357.12,0.00027193,2]
[321693879,1712395846643,-415.58690493,0.00027193,2]
[321693880,1712395846653,-5452.08,0.00027193,2]
[321693881,1712395846662,-500.0,0.00027193,2]
[321693882,1712395846671,-1212.72837645,0.00027194,2]
[321693883,1712395846680,-266.6005048,0.00027194,2]
[321693884,1712395846689,-1000.0,0.00027194,2]
[321693885,1712395846698,-500.0,0.00027194,2]
[321693886,1712395846707,-500.0,0.00027194,2]
[321693887,1712395846716,-500.0,0.00027194,2]
[321693888,1712395846725,-511.40058004,0.00027194,2]
[321693889,1712395846734,-500.0,0.00027194,2]
[321693890,1712395846743,-500.0,0.00027194,2]
[321693891,1712395846752,-500.0,0.00027194,2]
[321693892,1712395846762,-500.0,0.00027194,2]
[321693893,1712395846772,-500.0,0.00027194,2]
[321693894,1712395846781,-500.0,0.00027194,2]
[321693895,1712395846790,-732.52,0.00027194,2]
[321693896,1712395846799,-500.0,0.00027194,2]
[321693897,1712395846808,-2433.77,0.00027194,2]
[321693898,1712395846817,-500.0,0.00027194,2]
[321693899,1712395846826,-500.0,0.00027194,2]
[321693900,1712395846835,-500.0,0.00027194,2]
[321693901,1712395846843,-344.96853266,0.00027194,2]
[321693902,1712395846852,-160.66234739,0.00027194,2]
[321693903,1712395846861,-500.0,0.00027194,2]
[321693904,1712395846871,-500.0,0.00027194,2]
[321693905,1712395846880,-500.0,0.00027194,2]
[321693906,1712395846889,-523.69081799,0.00027194,2]
[321693907,1712395846898,-500.0,0.00027194,2]
[321693908,1712395846907,-500.0,0.00027194,2]
[321693909,1712395846916,-500.0,0.00027194,2]
[321693910,1712395846925,-509.80355682,0.00027194,2]
[321693911,1712395846934,-404.38159673,0.00027194,2]
[321693912,1712395846943,-500.0,0.00027194,2]
[321693913,1712395846952,-500.0,0.00027194,2]
[321693914,1712395846962,-500.0,0.00027194,2]
[321693915,1712395846972,-500.0,0.00027194,2]
[321693916,1712395846981,-500.0,0.00027194,2]
[321693917,1712395846990,-509.77730638,0.00027194,2]
[321693918,1712395847000,-500.0,0.00027194,2]
[321693919,1712395847010,-576.07,0.00027194,2]
[321693920,1712395847020,-516.4643611,0.00027194,2]
[321693921,1712395847031,-339.09590737,0.00027194,2]
[321693922,1712395847040,-500.0,0.00027194,2]
[321693923,1712395847049,-500.0,0.00027194,2]
[321693924,1712395847058,-503.81160796,0.00027194,2]
[321693925,1712395847067,-406.48300311,0.00027194,2]
[321693926,1712395847077,-500.0,0.00027194,2]
[321693927,1712395847086,-500.0,0.00027194,2]
[321693928,1712395847095,-500.0,0.00027194,2]
[321693929,1712395847103,-500.0,0.00027194,2]
[321693930,1712395847113,-500.0,0.00027194,2]
[321693931,1712395847121,-500.0,0.00027194,2]
[321693932,1712395847130,-500.0,0.00027194,2]
[321693933,1712395847139,-500.0,0.00027194,2]
[321693934,1712395847148,-507.75225805,0.00027194,2]
[321693935,1712395847158,-500.0,0.00027194,2]
[321693936,1712395847167,-519.22746976,0.00027194,2]
[321693937,1712395847176,-500.0,0.00027194,2]
[321693938,1712395847186,-500.0,0.00027194,2]
[321693939,1712395847194,-500.0,0.00027194,2]
[321693940,1712395847203,-492.76558776,0.00027194,2]
[321693941,1712395847213,-244.24940621,0.00027196,2]
[321693942,1712395847222,-500.0,0.00027196,2]
[321693943,1712395847232,-611.29418292,0.00027196,2]
[321693944,1712395847241,-236.6867,0.0002726,2]
[321693945,1712395847250,-946.06297937,0.000273,2]
[321693946,1712395847259,-1500.0,0.00027368,2]
[321693947,1712395847269,-423.49878377,0.00027395,2]
[321693948,1712395847281,-709.91340232,0.00027395,2]
[321693949,1712395847290,-223.77944178,0.00027396,2]
[321693950,1712395847299,-500.0,0.00027397,2]
[321693951,1712395847308,-1000.0,0.00027397,7]
[321693952,1712395847317,-153.0,0.000274,2]
[321693953,1712395847327,-412.7438698,0.000274,2]